[Event "Titled Tuesday Blitz February 22 Early 2022"]
[White "Zhigalko, Sergei"]
[Black "Ovetchkin, Roman"]
[WhiteFideId "13502956"]
[BlackFideId "4119991"]
[WhiteElo "2662"]
[BlackElo "2409"]
[Result "0-1"]
[Round "06"]
[TimeControl "180+1"]
[Date "2022.02.22"]
[WhiteClock "0:00:05"]
[BlackClock "0:00:12"]

1. e4 {[%clk 0:03:00]}  c6 {[%clk 0:02:59]} 2. d4 {[%clk 0:03:00]}  d5 {[%clk 0:03:00]} 3. e5 {[%clk 0:03:00]}  Bf5 {[%clk 0:03:00]} 4. Nf3 {[%clk 0:03:01]}  e6 {[%clk 0:03:00]} 5. Be2 {[%clk 0:03:02]}  Nd7 {[%clk 0:03:00]} 6. O-O {[%clk 0:03:02]}  Bg6 {[%clk 0:02:59]} 7. Nbd2 {[%clk 0:03:00]}  Nh6 {[%clk 0:02:58]} 8. c4 {[%clk 0:02:45]}  Nf5 {[%clk 0:02:57]} 9. a4 {[%clk 0:02:36]}  Bb4 {[%clk 0:02:47]} 10. cxd5 {[%clk 0:01:42]}  cxd5 {[%clk 0:02:45]} 11. Qb3 {[%clk 0:01:42]}  a5 {[%clk 0:02:44]} 12. Bb5 {[%clk 0:01:42]}  O-O {[%clk 0:02:43]} 13. Nb1 {[%clk 0:01:38]}  Nb8 {[%clk 0:02:23]} 14. Bd2 {[%clk 0:01:32]}  Nc6 {[%clk 0:02:21]} 15. Bxb4 {[%clk 0:01:09]}  Nxb4 {[%clk 0:02:20]} 16. h3 {[%clk 0:01:04]}  Rc8 {[%clk 0:02:10]} 17. Nc3 {[%clk 0:01:04]}  Nh4 {[%clk 0:02:07]} 18. Ne1 {[%clk 0:00:56]}  Qg5 {[%clk 0:01:46]} 19. Rd1 {[%clk 0:00:51]}  Bh5 {[%clk 0:01:31]} 20. f3 {[%clk 0:00:32]}  Nf5 {[%clk 0:01:17]} 21. Rf2 {[%clk 0:00:16]}  Qe3 {[%clk 0:01:03]} 22. g4 {[%clk 0:00:09]}  Nxd4 {[%clk 0:01:01]} 23. Rxd4 {[%clk 0:00:10]}  Qxe1+ {[%clk 0:01:00]} 24. Kg2 {[%clk 0:00:10]}  Qxe5 {[%clk 0:00:56]} 25. Qd1 {[%clk 0:00:07]}  Bg6 {[%clk 0:00:42]} 26. f4 {[%clk 0:00:08]}  Qf6 {[%clk 0:00:26]} 27. f5 {[%clk 0:00:07]}  exf5 {[%clk 0:00:26]} 28. Bd7 {[%clk 0:00:04]}  Rcd8 {[%clk 0:00:16]} 29. Bxf5 {[%clk 0:00:04]}  Bxf5 {[%clk 0:00:16]} 30. Rxf5 {[%clk 0:00:04]}  Qc6 {[%clk 0:00:16]} 31. Qd2 {[%clk 0:00:03]}  Rfe8 {[%clk 0:00:16]} 32. Rf2 {[%clk 0:00:02]}  h6 {[%clk 0:00:15]} 33. Qf4 {[%clk 0:00:02]}  Qg6 {[%clk 0:00:14]} 34. Kh2 {[%clk 0:00:02]}  Qd6 {[%clk 0:00:13]} 35. Kg2 {[%clk 0:00:02]}  Qxf4 {[%clk 0:00:13]} 36. Rfxf4 {[%clk 0:00:03]}  Re3 {[%clk 0:00:12]} 37. Rf2 {[%clk 0:00:02]}  Rd3 {[%clk 0:00:12]} 38. Rff4 {[%clk 0:00:02]}  Rxd4 {[%clk 0:00:12]} 39. Rxd4 {[%clk 0:00:03]}  Kf8 {[%clk 0:00:12]} 40. Kf3 {[%clk 0:00:03]}  Ke7 {[%clk 0:00:12]} 41. Rd1 {[%clk 0:00:04]}  d4 {[%clk 0:00:11]} 42. Nb5 {[%clk 0:00:04]}  d3 {[%clk 0:00:11]} 43. Ke4 {[%clk 0:00:05]}  Kf6 {[%clk 0:00:11]} 44. Nc3 {[%clk 0:00:04]}  Kg5 {[%clk 0:00:11]} 45. Kf3 {[%clk 0:00:03]}  Rd7 {[%clk 0:00:11]} 46. Kg3 {[%clk 0:00:02]}  Kf6 {[%clk 0:00:11]} 47. Kf4 {[%clk 0:00:02]}  Rd4+ {[%clk 0:00:11]} 48. Ke3 {[%clk 0:00:02]}  Ke5 {[%clk 0:00:11]} 49. h4 {[%clk 0:00:02]}  Nd5+ {[%clk 0:00:11]} 50. Kd2 {[%clk 0:00:02]}  Nxc3 {[%clk 0:00:11]} 51. Kxc3 {[%clk 0:00:03]}  Rxg4 {[%clk 0:00:11]} 52. Rxd3 {[%clk 0:00:02]}  Rxa4 {[%clk 0:00:11]} 53. Rd7 {[%clk 0:00:03]}  Rxh4 {[%clk 0:00:11]} 54. Rxf7 {[%clk 0:00:03]}  g5 {[%clk 0:00:11]} 55. Rxb7 {[%clk 0:00:04]}  a4 {[%clk 0:00:12]} 56. Rb5+ {[%clk 0:00:03]}  Kf6 {[%clk 0:00:12]} 57. Ra5 {[%clk 0:00:03]}  Rf4 {[%clk 0:00:12]} 58. Kd3 {[%clk 0:00:04]}  Kg6 {[%clk 0:00:12]} 59. Ke3 {[%clk 0:00:05]}  h5 {[%clk 0:00:12]} 60. Ra8 {[%clk 0:00:04]}  h4 {[%clk 0:00:12]} 61. Rh8 {[%clk 0:00:05]}  Kf5 {[%clk 0:00:12]} 62. Rh7 {[%clk 0:00:05]}  Kg4 {[%clk 0:00:13]} 63. Ra7 {[%clk 0:00:04]}  Rb4 {[%clk 0:00:13]} 64. Kd2 {[%clk 0:00:03]}  Kg3 {[%clk 0:00:13]} 65. Kc3 {[%clk 0:00:04]}  Rf4 {[%clk 0:00:12]} 66. b4 {[%clk 0:00:03]}  axb3 {[%clk 0:00:12]} 67. Ra1 {[%clk 0:00:04]}  g4 {[%clk 0:00:12]} 68. Rg1+ {[%clk 0:00:05]}  Kf2 {[%clk 0:00:12]} 0-1


[Site "https://www.chess.com"]

[Event "Titled Tuesday Blitz February 22 Early 2022"]
[White "Zierk, Steven"]
[Black "Narayanan.S.L"]
[WhiteFideId "2034255"]
[BlackFideId "5058422"]
[WhiteElo "2494"]
[BlackElo "2494"]
[Result "1-0"]
[Round "06"]
[TimeControl "180+1"]
[Date "2022.02.22"]
[WhiteClock "0:00:20"]
[BlackClock "0:00:09"]

1. e4 {[%clk 0:02:59]}  e6 {[%clk 0:02:59]} 2. d4 {[%clk 0:02:59]}  d5 {[%clk 0:03:00]} 3. Nd2 {[%clk 0:02:59]}  c5 {[%clk 0:02:59]} 4. Ngf3 {[%clk 0:02:58]}  cxd4 {[%clk 0:02:58]} 5. Nxd4 {[%clk 0:02:58]}  Nc6 {[%clk 0:02:58]} 6. Bb5 {[%clk 0:02:57]}  Bd7 {[%clk 0:02:58]} 7. Nxc6 {[%clk 0:02:57]}  bxc6 {[%clk 0:02:58]} 8. Bd3 {[%clk 0:02:58]}  Bd6 {[%clk 0:02:55]} 9. Qe2 {[%clk 0:02:52]}  Ne7 {[%clk 0:02:55]} 10. O-O {[%clk 0:02:51]}  Ng6 {[%clk 0:02:54]} 11. Nf3 {[%clk 0:02:50]}  Nf4 {[%clk 0:02:51]} 12. Bxf4 {[%clk 0:02:50]}  Bxf4 {[%clk 0:02:51]} 13. e5 {[%clk 0:02:48]}  g6 {[%clk 0:02:51]} 14. c4 {[%clk 0:02:30]}  O-O {[%clk 0:02:47]} 15. g3 {[%clk 0:02:24]}  Bh6 {[%clk 0:02:47]} 16. h4 {[%clk 0:02:24]}  c5 {[%clk 0:02:34]} 17. Rad1 {[%clk 0:02:15]}  Bc6 {[%clk 0:02:32]} 18. cxd5 {[%clk 0:02:03]}  exd5 {[%clk 0:02:31]} 19. e6 {[%clk 0:01:46]}  Qf6 {[%clk 0:02:26]} 20. exf7+ {[%clk 0:01:28]}  Rxf7 {[%clk 0:02:12]} 21. Ne5 {[%clk 0:01:28]}  Re8 {[%clk 0:01:06]} 22. Ng4 {[%clk 0:00:45]}  Qg7 {[%clk 0:01:04]} 23. Qc2 {[%clk 0:00:42]}  c4 {[%clk 0:01:02]} 24. b3 {[%clk 0:00:41]}  Bd7 {[%clk 0:00:25]} 25. Nxh6+ {[%clk 0:00:38]}  Qxh6 {[%clk 0:00:26]} 26. bxc4 {[%clk 0:00:38]}  Bg4 {[%clk 0:00:24]} 27. Rde1 {[%clk 0:00:33]}  Rc8 {[%clk 0:00:24]} 28. Qa4 {[%clk 0:00:30]}  Qd2 {[%clk 0:00:19]} 29. Re8+ {[%clk 0:00:27]}  Rxe8 {[%clk 0:00:19]} 30. Qxe8+ {[%clk 0:00:28]}  Rf8 {[%clk 0:00:20]} 31. Qe3 {[%clk 0:00:24]}  Qxe3 {[%clk 0:00:18]} 32. fxe3 {[%clk 0:00:25]}  Re8 {[%clk 0:00:18]} 33. Rf4 {[%clk 0:00:18]}  Rxe3 {[%clk 0:00:16]} 34. Bxg6 {[%clk 0:00:18]}  hxg6 {[%clk 0:00:14]} 35. Rxg4 {[%clk 0:00:18]}  dxc4 {[%clk 0:00:15]} 36. Kf2 {[%clk 0:00:16]}  Ra3 {[%clk 0:00:10]} 37. Rxg6+ {[%clk 0:00:16]}  Kf7 {[%clk 0:00:10]} 38. Rc6 {[%clk 0:00:17]}  Rxa2+ {[%clk 0:00:11]} 39. Kf3 {[%clk 0:00:18]}  Rc2 {[%clk 0:00:09]} 40. Rc7+ {[%clk 0:00:17]}  Kg6 {[%clk 0:00:09]} 41. Rxa7 {[%clk 0:00:18]}  Rc1 {[%clk 0:00:10]} 42. Rc7 {[%clk 0:00:17]}  c3 {[%clk 0:00:10]} 43. Kg4 {[%clk 0:00:17]}  c2 {[%clk 0:00:10]} 44. h5+ {[%clk 0:00:17]}  Kh6 {[%clk 0:00:11]} 45. Rc6+ {[%clk 0:00:17]}  Kh7 {[%clk 0:00:12]} 46. Rc5 {[%clk 0:00:18]}  Kh6 {[%clk 0:00:12]} 47. Rc7 {[%clk 0:00:18]}  Rd1 {[%clk 0:00:10]} 48. Rc6+ {[%clk 0:00:18]}  Kh7 {[%clk 0:00:08]} 49. Rxc2 {[%clk 0:00:19]}  Rd4+ {[%clk 0:00:08]} 50. Kh3 {[%clk 0:00:19]}  Ra4 {[%clk 0:00:09]} 51. g4 {[%clk 0:00:20]} 1-0


[Site "https://www.chess.com"]

[Event "Titled Tuesday Blitz February 22 Early 2022"]
[White "Ambartsumova, Karina"]
[Black "Melian, Juan Sebastian"]
[WhiteFideId "4166299"]
[BlackFideId "3706575"]
[WhiteElo "2262"]
[BlackElo "1842"]
[Result "1-0"]
[Round "07"]
[TimeControl "180+1"]
[Date "2022.02.22"]
[WhiteClock "0:00:13"]
[BlackClock "0:00:18"]

1. e4 {[%clk 0:03:00]}  e6 {[%clk 0:02:51]} 2. d4 {[%clk 0:02:57]}  d5 {[%clk 0:02:50]} 3. Nc3 {[%clk 0:02:54]}  dxe4 {[%clk 0:02:44]} 4. Nxe4 {[%clk 0:02:52]}  Bd7 {[%clk 0:02:43]} 5. Bd3 {[%clk 0:02:51]}  Bc6 {[%clk 0:02:43]} 6. Nf3 {[%clk 0:02:44]}  Nd7 {[%clk 0:02:36]} 7. c3 {[%clk 0:02:33]}  Bxe4 {[%clk 0:02:32]} 8. Bxe4 {[%clk 0:02:33]}  c6 {[%clk 0:02:32]} 9. Bf4 {[%clk 0:02:27]}  Ngf6 {[%clk 0:02:30]} 10. Bc2 {[%clk 0:02:26]}  Be7 {[%clk 0:02:26]} 11. O-O {[%clk 0:02:21]}  Nh5 {[%clk 0:02:19]} 12. Be3 {[%clk 0:02:18]}  O-O {[%clk 0:02:07]} 13. Qe2 {[%clk 0:01:45]}  h6 {[%clk 0:01:44]} 14. Rad1 {[%clk 0:01:39]}  Qc7 {[%clk 0:01:34]} 15. Qd2 {[%clk 0:01:36]}  Rfe8 {[%clk 0:00:50]} 16. Bxh6 {[%clk 0:01:26]}  gxh6 {[%clk 0:00:51]} 17. Qxh6 {[%clk 0:01:26]}  Nhf6 {[%clk 0:00:37]} 18. Ng5 {[%clk 0:01:17]}  Nf8 {[%clk 0:00:19]} 19. Rd3 {[%clk 0:01:07]}  Ng4 {[%clk 0:00:19]} 20. Rg3 {[%clk 0:00:30]}  Nxh6 {[%clk 0:00:17]} 21. Nxe6+ {[%clk 0:00:29]}  Kh8 {[%clk 0:00:12]} 22. Nxc7 {[%clk 0:00:27]}  Bd6 {[%clk 0:00:13]} 23. Nxe8 {[%clk 0:00:15]}  Bxg3 {[%clk 0:00:12]} 24. Nf6 {[%clk 0:00:14]}  Bd6 {[%clk 0:00:10]} 25. Re1 {[%clk 0:00:14]}  Ng6 {[%clk 0:00:10]} 26. g3 {[%clk 0:00:13]}  Ng8 {[%clk 0:00:10]} 27. Nh5 {[%clk 0:00:10]}  N8e7 {[%clk 0:00:05]} 28. f4 {[%clk 0:00:10]}  Ng8 {[%clk 0:00:05]} 29. Kf2 {[%clk 0:00:08]}  Rd8 {[%clk 0:00:04]} 30. Kf3 {[%clk 0:00:08]}  Bf8 {[%clk 0:00:04]} 31. g4 {[%clk 0:00:03]}  N6e7 {[%clk 0:00:05]} 32. Ng3 {[%clk 0:00:03]}  Bg7 {[%clk 0:00:05]} 33. h4 {[%clk 0:00:02]}  Nf6 {[%clk 0:00:06]} 34. h5 {[%clk 0:00:02]}  Nfd5 {[%clk 0:00:06]} 35. g5 {[%clk 0:00:03]}  f6 {[%clk 0:00:07]} 36. h6 {[%clk 0:00:03]}  fxg5 {[%clk 0:00:06]} 37. fxg5 {[%clk 0:00:04]}  Bf8 {[%clk 0:00:05]} 38. Kg4 {[%clk 0:00:04]}  Rd6 {[%clk 0:00:04]} 39. Nh5 {[%clk 0:00:04]}  Kg8 {[%clk 0:00:05]} 40. Nf4 {[%clk 0:00:04]}  Nxf4 {[%clk 0:00:05]} 41. Kxf4 {[%clk 0:00:05]}  Ng6+ {[%clk 0:00:06]} 42. Kg4 {[%clk 0:00:05]}  Ne7 {[%clk 0:00:06]} 43. Kh5 {[%clk 0:00:05]}  Nd5 {[%clk 0:00:07]} 44. g6 {[%clk 0:00:05]}  Nf4+ {[%clk 0:00:07]} 45. Kg5 {[%clk 0:00:05]}  Nxg6 {[%clk 0:00:07]} 46. Bxg6 {[%clk 0:00:05]}  c5 {[%clk 0:00:07]} 47. Re4 {[%clk 0:00:05]}  Rd5+ {[%clk 0:00:07]} 48. Kg4 {[%clk 0:00:04]}  Bxh6 {[%clk 0:00:07]} 49. Bf5 {[%clk 0:00:04]}  cxd4 {[%clk 0:00:07]} 50. Be6+ {[%clk 0:00:04]}  Kg7 {[%clk 0:00:07]} 51. Bxd5 {[%clk 0:00:05]}  d3 {[%clk 0:00:08]} 52. Rd4 {[%clk 0:00:06]}  d2 {[%clk 0:00:08]} 53. Rd3 {[%clk 0:00:06]}  Kf6 {[%clk 0:00:08]} 54. Bf3 {[%clk 0:00:06]}  Ke5 {[%clk 0:00:09]} 55. Bxb7 {[%clk 0:00:06]}  Ke6 {[%clk 0:00:06]} 56. Bf3 {[%clk 0:00:06]}  Ke5 {[%clk 0:00:07]} 57. Kg3 {[%clk 0:00:06]}  a5 {[%clk 0:00:08]} 58. Kf2 {[%clk 0:00:07]}  Kf4 {[%clk 0:00:09]} 59. Ke2 {[%clk 0:00:07]}  Ke5 {[%clk 0:00:09]} 60. Bb7 {[%clk 0:00:07]}  Ke6 {[%clk 0:00:09]} 61. Rxd2 {[%clk 0:00:07]}  Bxd2 {[%clk 0:00:10]} 62. Kxd2 {[%clk 0:00:08]}  Kd6 {[%clk 0:00:11]} 63. Kc2 {[%clk 0:00:08]}  Kc5 {[%clk 0:00:12]} 64. Be4 {[%clk 0:00:09]}  Kb6 {[%clk 0:00:13]} 65. a4 {[%clk 0:00:09]}  Kc5 {[%clk 0:00:14]} 66. Kb3 {[%clk 0:00:09]}  Kb6 {[%clk 0:00:14]} 67. Bd3 {[%clk 0:00:10]}  Ka7 {[%clk 0:00:14]} 68. Bb5 {[%clk 0:00:10]}  Kb6 {[%clk 0:00:15]} 69. Kc4 {[%clk 0:00:10]}  Kc7 {[%clk 0:00:15]} 70. Kc5 {[%clk 0:00:11]}  Kb7 {[%clk 0:00:16]} 71. b4 {[%clk 0:00:11]}  axb4 {[%clk 0:00:16]} 72. cxb4 {[%clk 0:00:11]}  Ka7 {[%clk 0:00:16]} 73. Bc4 {[%clk 0:00:12]}  Kb8 {[%clk 0:00:17]} 74. Kb6 {[%clk 0:00:12]}  Ka8 {[%clk 0:00:17]} 75. Bd5+ {[%clk 0:00:13]}  Kb8 {[%clk 0:00:18]} 76. a5 {[%clk 0:00:13]} 1-0


[Site "https://www.chess.com"]

[Event "Titled Tuesday Blitz February 22 Early 2022"]
[White "Ashiev, Eduard"]
[Black "Sanchez, Robert"]
[WhiteFideId "4130090"]
[BlackFideId "2034360"]
[WhiteElo "2004"]
[BlackElo "2265"]
[Result "1-0"]
[Round "07"]
[TimeControl "180+1"]
[Date "2022.02.22"]
[WhiteClock "0:00:44"]
[BlackClock "0:01:36"]

1. d4 {[%clk 0:02:55]}  d5 {[%clk 0:02:59]} 2. Nf3 {[%clk 0:02:53]}  e6 {[%clk 0:02:59]} 3. c4 {[%clk 0:02:53]}  Nf6 {[%clk 0:03:00]} 4. Nc3 {[%clk 0:02:53]}  a6 {[%clk 0:03:00]} 5. c5 {[%clk 0:02:51]}  Be7 {[%clk 0:03:00]} 6. Bf4 {[%clk 0:02:50]}  O-O {[%clk 0:03:00]} 7. e3 {[%clk 0:02:49]}  Nc6 {[%clk 0:03:00]} 8. Bd3 {[%clk 0:02:44]}  Re8 {[%clk 0:02:58]} 9. O-O {[%clk 0:02:39]}  Nh5 {[%clk 0:02:50]} 10. a3 {[%clk 0:02:33]}  Nxf4 {[%clk 0:02:37]} 11. exf4 {[%clk 0:02:33]}  Bf6 {[%clk 0:02:36]} 12. Bc2 {[%clk 0:02:31]}  g6 {[%clk 0:02:36]} 13. Re1 {[%clk 0:02:28]}  Bg7 {[%clk 0:02:29]} 14. h4 {[%clk 0:02:14]}  Qf6 {[%clk 0:02:25]} 15. Ne2 {[%clk 0:01:52]}  Bd7 {[%clk 0:02:18]} 16. h5 {[%clk 0:01:42]}  Rad8 {[%clk 0:02:12]} 17. Ne5 {[%clk 0:01:37]}  Nxe5 {[%clk 0:02:10]} 18. dxe5 {[%clk 0:01:30]}  Qe7 {[%clk 0:02:09]} 19. hxg6 {[%clk 0:01:30]}  hxg6 {[%clk 0:02:07]} 20. b4 {[%clk 0:01:27]}  Bb5 {[%clk 0:02:05]} 21. Nd4 {[%clk 0:01:26]}  Bc4 {[%clk 0:02:05]} 22. Qf3 {[%clk 0:01:19]}  Bb5 {[%clk 0:01:50]} 23. Re3 {[%clk 0:01:04]}  b6 {[%clk 0:01:45]} 24. Rc3 {[%clk 0:01:00]}  bxc5 {[%clk 0:01:44]} 25. Rxc5 {[%clk 0:00:59]}  Bc4 {[%clk 0:01:40]} 26. Nc6 {[%clk 0:00:47]}  Qd7 {[%clk 0:01:39]} 27. Nxd8 {[%clk 0:00:46]}  Rxd8 {[%clk 0:01:37]} 28. Rd1 {[%clk 0:00:45]}  c6 {[%clk 0:01:36]} 29. Rxc4 {[%clk 0:00:44]} 1-0


[Site "https://www.chess.com"]

[Event "Titled Tuesday Blitz February 22 Early 2022"]
[White "Atakhan, Abtin"]
[Black "Samadov, Read"]
[WhiteFideId "22502203"]
[BlackFideId "13417444"]
[WhiteElo "2623"]
[BlackElo "2800"]
[Result "1-0"]
[Round "07"]
[TimeControl "180+1"]
[Date "2022.02.22"]
[WhiteClock "0:00:30"]
[BlackClock "0:00:01"]

1. e4 {[%clk 0:03:00]}  c5 {[%clk 0:02:59]} 2. Nc3 {[%clk 0:03:01]}  d6 {[%clk 0:03:00]} 3. d4 {[%clk 0:03:01]}  cxd4 {[%clk 0:02:59]} 4. Qxd4 {[%clk 0:03:02]}  Nc6 {[%clk 0:03:00]} 5. Qd2 {[%clk 0:03:02]}  g6 {[%clk 0:03:00]} 6. b3 {[%clk 0:03:02]}  Bh6 {[%clk 0:03:00]} 7. f4 {[%clk 0:03:03]}  Nf6 {[%clk 0:03:01]} 8. Bb2 {[%clk 0:03:02]}  O-O {[%clk 0:03:02]} 9. O-O-O {[%clk 0:03:02]}  a5 {[%clk 0:03:02]} 10. a4 {[%clk 0:02:40]}  Nb4 {[%clk 0:03:02]} 11. Kb1 {[%clk 0:02:38]}  Qb6 {[%clk 0:02:59]} 12. g3 {[%clk 0:02:31]}  Be6 {[%clk 0:02:49]} 13. Nge2 {[%clk 0:02:26]}  Rac8 {[%clk 0:02:14]} 14. Nd4 {[%clk 0:02:15]}  Bd7 {[%clk 0:01:49]} 15. Qe1 {[%clk 0:02:08]}  e5 {[%clk 0:01:21]} 16. Ndb5 {[%clk 0:01:55]}  d5 {[%clk 0:00:44]} 17. fxe5 {[%clk 0:01:35]}  Ng4 {[%clk 0:00:38]} 18. Nxd5 {[%clk 0:01:31]}  Nxd5 {[%clk 0:00:37]} 19. exd5 {[%clk 0:01:32]}  Qc5 {[%clk 0:00:26]} 20. Bc4 {[%clk 0:01:17]}  Bxb5 {[%clk 0:00:14]} 21. axb5 {[%clk 0:01:16]}  a4 {[%clk 0:00:14]} 22. e6 {[%clk 0:00:40]}  axb3 {[%clk 0:00:12]} 23. exf7+ {[%clk 0:00:35]}  Rxf7 {[%clk 0:00:11]} 24. Bxb3 {[%clk 0:00:35]}  Qd6 {[%clk 0:00:04]} 25. Qe6 {[%clk 0:00:33]}  Qxe6 {[%clk 0:00:03]} 26. dxe6 {[%clk 0:00:34]}  Re7 {[%clk 0:00:04]} 27. Rd7 {[%clk 0:00:33]}  Bf8 {[%clk 0:00:02]} 28. Ba3 {[%clk 0:00:31]}  Ree8 {[%clk 0:00:01]} 29. e7+ {[%clk 0:00:30]} 1-0


[Site "https://www.chess.com"]

[Event "Titled Tuesday Blitz February 22 Early 2022"]
[White "Baches Garcia, Guillermo"]
[Black "Petesch, Gabriel"]
[WhiteFideId "2209764"]
[BlackFideId "2032465"]
[WhiteElo "2405"]
[BlackElo "2374"]
[Result "0-1"]
[Round "07"]
[TimeControl "180+1"]
[Date "2022.02.22"]
[WhiteClock "0:00:08"]
[BlackClock "0:00:11"]

1. e4 {[%clk 0:03:00]}  d6 {[%clk 0:02:58]} 2. d4 {[%clk 0:03:00]}  e5 {[%clk 0:02:57]} 3. Ne2 {[%clk 0:02:58]}  exd4 {[%clk 0:02:52]} 4. Nxd4 {[%clk 0:02:57]}  Nc6 {[%clk 0:02:44]} 5. Nxc6 {[%clk 0:02:50]}  bxc6 {[%clk 0:02:45]} 6. Bd3 {[%clk 0:02:50]}  g6 {[%clk 0:02:45]} 7. Bd2 {[%clk 0:02:44]}  Bg7 {[%clk 0:02:44]} 8. Bc3 {[%clk 0:02:44]}  Nf6 {[%clk 0:02:39]} 9. O-O {[%clk 0:02:41]}  O-O {[%clk 0:02:36]} 10. f4 {[%clk 0:02:37]}  Re8 {[%clk 0:02:33]} 11. Nd2 {[%clk 0:02:37]}  a5 {[%clk 0:02:15]} 12. Qf3 {[%clk 0:02:30]}  a4 {[%clk 0:02:09]} 13. e5 {[%clk 0:02:21]}  Nd5 {[%clk 0:02:00]} 14. Bd4 {[%clk 0:02:03]}  a3 {[%clk 0:01:36]} 15. b3 {[%clk 0:01:59]}  Nb4 {[%clk 0:01:30]} 16. Rae1 {[%clk 0:01:37]}  Ba6 {[%clk 0:01:25]} 17. Bxa6 {[%clk 0:01:08]}  Rxa6 {[%clk 0:01:21]} 18. c3 {[%clk 0:01:05]}  Nxa2 {[%clk 0:01:01]} 19. Ra1 {[%clk 0:00:59]}  c5 {[%clk 0:00:57]} 20. Bf2 {[%clk 0:00:36]}  Nb4 {[%clk 0:00:47]} 21. cxb4 {[%clk 0:00:33]}  cxb4 {[%clk 0:00:48]} 22. Nc4 {[%clk 0:00:24]}  Qa8 {[%clk 0:00:35]} 23. Qd3 {[%clk 0:00:20]}  dxe5 {[%clk 0:00:23]} 24. fxe5 {[%clk 0:00:20]}  Rae6 {[%clk 0:00:20]} 25. Bd4 {[%clk 0:00:19]}  Qd5 {[%clk 0:00:19]} 26. Qe3 {[%clk 0:00:17]}  Rd8 {[%clk 0:00:18]} 27. Bc5 {[%clk 0:00:17]}  Bxe5 {[%clk 0:00:15]} 28. Nxe5 {[%clk 0:00:16]}  Rxe5 {[%clk 0:00:13]} 29. Qf2 {[%clk 0:00:15]}  Qxc5 {[%clk 0:00:13]} 30. Qxc5 {[%clk 0:00:09]}  Rxc5 {[%clk 0:00:13]} 31. Rf4 {[%clk 0:00:10]}  Rb8 {[%clk 0:00:12]} 32. Ra2 {[%clk 0:00:09]}  Rc3 {[%clk 0:00:12]} 33. Rd4 {[%clk 0:00:08]}  Rxb3 {[%clk 0:00:11]} 34. Rd7 {[%clk 0:00:09]}  Rb1+ {[%clk 0:00:11]} 35. Kf2 {[%clk 0:00:08]}  Rb2+ {[%clk 0:00:11]} 0-1


[Site "https://www.chess.com"]

[Event "Titled Tuesday Blitz February 22 Early 2022"]
[White "Baker, Chris W"]
[Black "Manelyuk, Daniil"]
[WhiteFideId "401676"]
[BlackFideId "44173920"]
[WhiteElo "2217"]
[BlackElo "2222"]
[Result "0-1"]
[Round "07"]
[TimeControl "180+1"]
[Date "2022.02.22"]
[WhiteClock "0:00:08"]
[BlackClock "0:01:21"]

1. c4 {[%clk 0:03:00]}  Nf6 {[%clk 0:02:59]} 2. Nf3 {[%clk 0:03:00]}  c5 {[%clk 0:02:59]} 3. g3 {[%clk 0:03:00]}  g6 {[%clk 0:02:59]} 4. Bg2 {[%clk 0:03:00]}  Bg7 {[%clk 0:02:59]} 5. O-O {[%clk 0:03:01]}  O-O {[%clk 0:03:00]} 6. Nc3 {[%clk 0:03:01]}  Nc6 {[%clk 0:03:00]} 7. d4 {[%clk 0:03:01]}  cxd4 {[%clk 0:03:00]} 8. Nxd4 {[%clk 0:03:01]}  Nxd4 {[%clk 0:03:00]} 9. Qxd4 {[%clk 0:03:00]}  d6 {[%clk 0:03:01]} 10. Qd3 {[%clk 0:02:59]}  Rb8 {[%clk 0:03:00]} 11. b3 {[%clk 0:02:57]}  a6 {[%clk 0:02:59]} 12. Bb2 {[%clk 0:02:57]}  Bd7 {[%clk 0:02:58]} 13. Rad1 {[%clk 0:02:54]}  b5 {[%clk 0:02:58]} 14. cxb5 {[%clk 0:02:50]}  axb5 {[%clk 0:02:58]} 15. b4 {[%clk 0:02:39]}  Be6 {[%clk 0:02:44]} 16. Rd2 {[%clk 0:02:34]}  Bc4 {[%clk 0:02:44]} 17. Qc2 {[%clk 0:02:29]}  Nd7 {[%clk 0:02:43]} 18. a3 {[%clk 0:02:25]}  Nb6 {[%clk 0:02:42]} 19. Ne4 {[%clk 0:02:19]}  Bxb2 {[%clk 0:02:37]} 20. Qxb2 {[%clk 0:02:19]}  Na4 {[%clk 0:02:37]} 21. Qa1 {[%clk 0:02:16]}  f5 {[%clk 0:02:32]} 22. Ng5 {[%clk 0:02:09]}  h6 {[%clk 0:02:26]} 23. Nf3 {[%clk 0:02:06]}  Qc7 {[%clk 0:02:17]} 24. Rc1 {[%clk 0:02:00]}  e5 {[%clk 0:02:14]} 25. Nh4 {[%clk 0:01:47]}  Kh7 {[%clk 0:02:12]} 26. Bd5 {[%clk 0:01:45]}  Nb6 {[%clk 0:02:12]} 27. Bg2 {[%clk 0:01:35]}  d5 {[%clk 0:02:07]} 28. Nf3 {[%clk 0:01:34]}  d4 {[%clk 0:02:05]} 29. Rdc2 {[%clk 0:01:26]}  Qd6 {[%clk 0:02:00]} 30. Nd2 {[%clk 0:01:24]}  Rfc8 {[%clk 0:01:52]} 31. a4 {[%clk 0:01:19]}  Bxe2 {[%clk 0:01:46]} 32. a5 {[%clk 0:01:06]}  Rxc2 {[%clk 0:01:30]} 33. Rxc2 {[%clk 0:01:05]}  Na4 {[%clk 0:01:31]} 34. Rc6 {[%clk 0:00:42]}  Qxb4 {[%clk 0:01:29]} 35. Nf3 {[%clk 0:00:20]}  Bxf3 {[%clk 0:01:24]} 36. Bxf3 {[%clk 0:00:20]}  e4 {[%clk 0:01:25]} 37. Be2 {[%clk 0:00:10]}  Nc3 {[%clk 0:01:24]} 38. Bc4 {[%clk 0:00:08]}  bxc4 {[%clk 0:01:21]} 0-1


[Site "https://www.chess.com"]

[Event "Titled Tuesday Blitz February 22 Early 2022"]
[White "Bashirli, Saadat"]
[Black "Dew, Brian"]
[WhiteFideId "13429990"]
[BlackFideId "6000495"]
[WhiteElo "1173"]
[BlackElo "2118"]
[Result "1-0"]
[Round "07"]
[TimeControl "180+1"]
[Date "2022.02.22"]
[WhiteClock "0:00:49"]
[BlackClock "0:00:01"]

1. d4 {[%clk 0:03:00]}  d5 {[%clk 0:02:57]} 2. Bg5 {[%clk 0:03:00]}  Bf5 {[%clk 0:02:54]} 3. Nf3 {[%clk 0:02:59]}  c6 {[%clk 0:02:52]} 4. e3 {[%clk 0:02:59]}  Qb6 {[%clk 0:02:52]} 5. Qc1 {[%clk 0:02:56]}  Nd7 {[%clk 0:02:50]} 6. c4 {[%clk 0:02:54]}  Ngf6 {[%clk 0:02:39]} 7. Nc3 {[%clk 0:02:53]}  e6 {[%clk 0:02:37]} 8. c5 {[%clk 0:02:52]}  Qa5 {[%clk 0:02:33]} 9. Be2 {[%clk 0:02:47]}  Ne4 {[%clk 0:02:32]} 10. Bf4 {[%clk 0:02:46]}  b6 {[%clk 0:02:29]} 11. cxb6 {[%clk 0:02:42]}  axb6 {[%clk 0:02:19]} 12. O-O {[%clk 0:02:41]}  Nxc3 {[%clk 0:02:13]} 13. bxc3 {[%clk 0:02:42]}  Ba3 {[%clk 0:02:11]} 14. Qd2 {[%clk 0:02:39]}  O-O {[%clk 0:02:01]} 15. Ne5 {[%clk 0:02:31]}  Nxe5 {[%clk 0:01:57]} 16. Bxe5 {[%clk 0:02:31]}  c5 {[%clk 0:01:49]} 17. f3 {[%clk 0:02:13]}  Rfc8 {[%clk 0:01:39]} 18. dxc5 {[%clk 0:02:07]}  bxc5 {[%clk 0:01:37]} 19. h4 {[%clk 0:01:56]}  Qa4 {[%clk 0:01:26]} 20. g4 {[%clk 0:01:53]}  Bc2 {[%clk 0:00:59]} 21. Bd3 {[%clk 0:01:41]}  Bxd3 {[%clk 0:00:57]} 22. Qxd3 {[%clk 0:01:42]}  Bb2 {[%clk 0:00:47]} 23. Rab1 {[%clk 0:01:33]}  Ba3 {[%clk 0:00:11]} 24. Qd2 {[%clk 0:01:24]}  c4 {[%clk 0:00:08]} 25. Bg3 {[%clk 0:01:19]}  Bc5 {[%clk 0:00:06]} 26. Rb2 {[%clk 0:01:13]}  Qa7 {[%clk 0:00:06]} 27. Bf2 {[%clk 0:01:12]}  Rcb8 {[%clk 0:00:05]} 28. Rxb8+ {[%clk 0:01:11]}  Rxb8 {[%clk 0:00:05]} 29. Kg2 {[%clk 0:01:11]}  Qa3 {[%clk 0:00:04]} 30. e4 {[%clk 0:01:07]}  Rb2 {[%clk 0:00:03]} 31. Qg5 {[%clk 0:01:00]}  Qxa2 {[%clk 0:00:02]} 32. Qd8+ {[%clk 0:00:56]}  Bf8 {[%clk 0:00:02]} 33. exd5 {[%clk 0:00:55]}  exd5 {[%clk 0:00:01]} 34. Qxd5 {[%clk 0:00:54]}  Re2 {[%clk 0:00:01]} 35. Qd8 {[%clk 0:00:53]}  Qd2 {[%clk 0:00:01]} 36. Qc8 {[%clk 0:00:49]} 1-0


[Site "https://www.chess.com"]